fUST/lending_fUST_20260416
["ID","MTS","AMOUNT","RATE_DAILY","PERIOD"]
[420589295,1776282631812,-145.55314048,7.913e-05,2]
[420589296,1776282631824,-154.44685952,7.913e-05,2]
[420589297,1776282631834,-510.60314048,7.914e-05,2]
[420589298,1776282631845,-2371.6,7.914e-05,2]
[420589299,1776282631856,-759.4362809,7.914e-05,2]
[420589300,1776282631866,-2723.6404269,8.01e-05,2]
[420589302,1776282631876,-7583.73994912,8.014e-05,2]
[420589304,1776282631886,-300.0,8.088e-05,2]
[420589306,1776282631896,-300.0,8.088e-05,2]
[420589308,1776282631906,-300.0,8.088e-05,2]
[420589310,1776282631915,-300.0,8.088e-05,2]
[420589312,1776282631925,-300.0,8.088e-05,2]
[420589315,1776282631935,-300.0,8.088e-05,2]
[420589316,1776282631944,-300.0,8.088e-05,2]
[420589317,1776282631953,-300.0,8.088e-05,2]
[420589318,1776282631963,-300.0,8.088e-05,2]
[420589319,1776282631972,-300.0,8.088e-05,2]
[420589320,1776282631982,-300.0,8.088e-05,2]
[420589321,1776282631992,-300.0,8.088e-05,2]
[420589322,1776282632001,-300.0,8.088e-05,2]
[420589323,1776282632010,-300.0,8.088e-05,2]
[420589324,1776282632020,-300.0,8.088e-05,2]
[420589325,1776282632029,-328.08544536,8.213e-05,2]
[420589326,1776282632039,-263.69,8.213e-05,2]
[420589327,1776282632048,-9027.54606319,8.214e-05,2]
[420589328,1776282632058,-926.32928292,8.419e-05,2]
[420589329,1776282632067,-10186.21481087,8.519e-05,2]
[420589330,1776282632076,-420.0,8.704e-05,2]
[420589331,1776282632086,-346.26825329,8.8e-05,2]
[420589332,1776282632095,-500.0,8.843e-05,2]
[420589333,1776282632104,-500.0,8.843e-05,2]
[420589334,1776282632114,-477.59600025,8.843e-05,2]
[420589335,1776282632123,-500.0,8.843e-05,2]
[420589336,1776282632133,-500.0,8.86e-05,2]
[420589337,1776282632142,-331.44207524,8.86e-05,2]
[420589338,1776282632151,-285.6821747,8.86e-05,2]
[420589339,1776282632160,-500.0,8.86e-05,2]
[420589340,1776282632169,-500.0,8.86e-05,2]
[420589341,1776282632179,-500.0,8.86e-05,2]
[420589342,1776282632188,-500.0,8.86e-05,2]
[420589343,1776282632197,-500.0,8.86e-05,2]
[420589344,1776282632207,-500.0,8.86e-05,2]
[420589345,1776282632216,-500.0,8.86e-05,2]
[420589346,1776282632226,-500.0,8.86e-05,2]
[420589347,1776282632235,-500.0,8.86e-05,2]
[420589348,1776282632245,-493.20388513,8.86e-05,2]
[420589349,1776282632254,-500.0,8.86e-05,2]
[420589350,1776282632263,-500.0,8.86e-05,2]
[420589351,1776282632272,-500.0,8.86e-05,2]
[420589352,1776282632282,-500.0,8.86e-05,2]
[420589353,1776282632292,-500.0,8.86e-05,2]
[420589354,1776282632301,-500.0,8.86e-05,2]
[420589355,1776282632311,-500.0,8.86e-05,2]
[420589356,1776282632320,-500.0,8.86e-05,2]
[420589357,1776282632329,-500.0,8.86e-05,2]
[420589358,1776282632339,-500.0,8.86e-05,2]
[420589359,1776282632348,-650.80906532,8.86e-05,2]
[420589360,1776282632358,-31092.58532146,8.861e-05,2]
[420589361,1776282632370,-14748.56786279,8.861e-05,2]
[420589362,1776282632392,-323291.19726298,8.861e-05,2]
[420589815,1776282638951,-16337.30332172,8.861e-05,2]
[420590041,1776282646542,-23461.9212429,8.861e-05,2]
[420590042,1776282646553,-5029.77788828,8.861e-05,2]
[420590043,1776282646565,-900.16552,8.861e-05,2]
[420590044,1776282646576,-7186.78748604,8.861e-05,2]
[420590051,1776282646652,-337.72830889,8.861e-05,2]
[420590053,1776282646663,-6264.6768635,8.861e-05,2]
[420590065,1776282646766,-671.16,8.861e-05,2]
[420590079,1776282646874,-30108.0,8.861e-05,2]
[420590086,1776282646931,-34201.88198134,8.861e-05,2]
[420590093,1776282646990,-2868.35081306,8.861e-05,2]
[420590777,1776282704087,612.0,0.00026816,120]
[420590778,1776282712314,3000.0,0.000135,120]
[420590779,1776282712427,1800.0,0.0001377,120]
[420590780,1776282712587,1050.0,0.0001404,120]
[420590781,1776282712757,600.0,0.0001431,120]
[420590782,1776282712921,300.0,0.0001458,120]
[420590784,1776282792607,199.0,0.00026816,120]
[420590785,1776282799086,500.0,0.00027397,120]
[420590786,1776282822690,500.0,0.00027397,120]
[420590788,1776282859588,1000.0,0.00027397,120]
[420590789,1776282867061,163.0,0.00026816,120]
[420590791,1776282896354,1000.0,0.00027397,120]
[420590792,1776282932986,700.0,0.00027397,120]
[420590793,1776282933213,700.0,0.00027397,120]
[420590794,1776282933430,623.13185066,0.00027397,120]
[420590795,1776282970005,1000.0,0.00027397,120]
[420590796,1776282982699,1000.0,0.00027397,120]
[420590797,1776283114983,311.58464256,3.003e-05,2]
[420590800,1776283270740,3297.0,0.00027397,120]
[420590801,1776283292897,-2451.82922132,8.012e-05,2]
[420590802,1776283375522,2000.0,0.00027397,120]
[420590804,1776283447277,5000.0,0.00027,120]
[420590805,1776283473590,5000.0,0.00027,120]
[420590806,1776283477713,5000.0,0.00027,120]
[420590807,1776283498618,5635.62550346,0.00027397,120]
[420590808,1776283554867,5000.0,0.00027,120]
[420590809,1776283562602,500.0,0.00027397,120]
[420590810,1776283576924,500.0,0.00027397,120]
[420590811,1776283596165,5000.0,0.00027,120]
[420590813,1776283637838,495.0,0.00026782,120]
[420590820,1776283724993,220.0,0.00026782,120]
[420590821,1776283740105,929.52,0.00027397,120]
[420590822,1776283740138,300.0,0.00027397,120]
[420590823,1776283742682,300.0,0.00027397,120]
[420590824,1776283742725,929.52,0.00027397,120]
[420590825,1776283744960,300.0,0.00027397,120]
[420590826,1776283745200,929.52,0.00027397,120]
[420590827,1776283747235,300.0,0.00027397,120]
[420590828,1776283747451,929.52,0.00027397,120]
[420590829,1776283749487,300.0,0.00027397,120]
[420590830,1776283750087,929.52,0.00027397,120]
[420590831,1776283751744,300.0,0.00027397,120]
[420590832,1776283751960,929.52,0.00027397,120]
[420590833,1776283754001,300.0,0.00027397,120]
[420590834,1776283754245,929.52,0.00027397,120]
[420590835,1776283756500,929.52,0.00027397,120]
[420590836,1776283757695,318.31846191,0.00027397,120]
[420590837,1776283758779,929.52,0.00027397,120]
[420590838,1776283761031,929.54591023,0.00027397,120]
[420590854,1776283832016,-3124.86018043,7.319e-05,2]
[420590855,1776283832025,-3503.926051,7.393e-05,2]
[420590856,1776283832037,-1496.073949,7.393e-05,2]
[420590857,1776283832046,-239.80224273,7.468e-05,2]
[420590858,1776283832071,-458.20547818,7.468e-05,2]
[420590859,1776283832081,-525.0,7.468e-05,2]
[420590860,1776283832091,-1200.0,7.542e-05,2]
[420590861,1776283832100,-282.22210088,7.735e-05,2]
[420590862,1776283832110,-178.114614,8.33e-05,2]
[420590863,1776283832120,-11861.3056371,8.841e-05,2]
[420590864,1776283832130,-600.0,8.975e-05,2]
[420590865,1776283832140,-300.0,9.037e-05,2]
[420590866,1776283832149,-300.0,9.037e-05,2]
[420590867,1776283832159,-300.0,9.037e-05,2]
[420590868,1776283832168,-300.0,9.037e-05,2]
[420590869,1776283832178,-300.0,9.037e-05,2]
[420590870,1776283832187,-300.0,9.037e-05,2]
[420590871,1776283832196,-300.0,9.037e-05,2]
[420590872,1776283832205,-300.0,9.037e-05,2]
[420590873,1776283832215,-300.0,9.037e-05,2]
[420590874,1776283832224,-300.0,9.037e-05,2]
[420590875,1776283832233,-300.0,9.037e-05,2]
[420590876,1776283832242,-300.0,9.037e-05,2]
[420590877,1776283832251,-300.0,9.037e-05,2]
[420590878,1776283832260,-300.0,9.037e-05,2]
[420590879,1776283832270,-300.0,9.037e-05,2]
[420590880,1776283832279,-500.0,9.186e-05,2]
[420590881,1776283832288,-184.0,9.245e-05,2]
[420590882,1776283832298,-200.71750945,9.46e-05,2]
[420590883,1776283832307,-333.02207903,9.735e-05,2]
[420590884,1776283832316,-160.0,9.804e-05,2]
[420590885,1776283832325,-500.0,9.805e-05,2]
[420590886,1776283832334,-455.5310146,9.838e-05,2]
[420590887,1776283832343,-720.0,9.872e-05,2]
[420590888,1776283832352,-375.18401608,9.951e-05,2]
[420590889,1776283832362,-254.95580349,9.951e-05,2]
[420590890,1776283832371,-500.0,9.951e-05,2]
[420590891,1776283832380,-200.0,9.951e-05,2]
[420590892,1776283832389,-11861.3056371,9.953e-05,2]
[420590893,1776283832398,-327.87,0.00010018,2]
[420590894,1776283832408,-349.1,0.00010019,2]
[420590895,1776283832416,-392.23,0.00010021,2]
[420590896,1776283832426,-450.99,0.00010049,2]
[420590897,1776283832435,-2150.738,0.00010226,2]
[420590898,1776283832444,-2868.35081306,0.00010759,2]
[420590899,1776283832453,-2230.315306,0.00010774,2]
[420590900,1776283832462,-864.0,0.0001086,2]
[420590901,1776283832471,-232.00945267,0.00010958,2]
[420590902,1776283832480,-357.26347191,0.00010958,2]
[420590903,1776283832489,-500.0,0.00010958,2]
[420590904,1776283832498,-500.0,0.00010958,2]
[420590905,1776283832507,-500.0,0.00010958,2]
[420590906,1776283832517,-500.0,0.00010958,2]
[420590907,1776283832526,-500.0,0.00010958,2]
[420590908,1776283832536,-500.0,0.00010958,2]
[420590909,1776283832545,-400.80906531,0.00010958,2]
[420590910,1776283832554,-500.0,0.00010958,2]
[420590911,1776283832563,-500.0,0.00010958,2]
[420590912,1776283832572,-500.0,0.00010958,2]
[420590913,1776283832581,-500.0,0.00010958,2]
[420590914,1776283832590,-500.0,0.00010958,2]
[420590915,1776283832599,-500.0,0.00010958,2]
[420590916,1776283832608,-500.0,0.00010958,2]
[420590917,1776283832617,-500.0,0.00010958,2]
[420590918,1776283832626,-500.0,0.00010958,2]
[420590919,1776283832635,-600.0,0.00010958,2]
[420590920,1776283832644,-2247.5852011,0.00010959,2]
[420590921,1776283832653,-270.52601055,0.00010959,2]
[420590922,1776283832662,-878.02924145,0.00010959,2]
[420590923,1776283832671,-878.02924145,0.00010959,2]
[420590924,1776283832680,-878.02924145,0.00010959,2]
[420590925,1776283832690,-878.02924145,0.00010959,2]
[420590926,1776283832699,-878.02924145,0.00010959,2]
[420590927,1776283832708,-878.02924145,0.00010959,2]
[420590928,1776283832717,-878.02924145,0.00010959,2]
[420590929,1776283832727,-878.02924145,0.00010959,2]
[420590930,1776283832736,-878.02924145,0.00010959,2]
[420590931,1776283832746,-878.02924145,0.00010959,2]
[420590932,1776283832755,-878.02924145,0.00010959,2]
[420590933,1776283832764,-878.02924145,0.00010959,2]
[420590934,1776283832774,-878.02924145,0.00010959,2]
[420590935,1776283832783,-878.02924145,0.00010959,2]
[420590936,1776283832792,-878.02924145,0.00010959,2]
[420590937,1776283832802,-878.02924145,0.00010959,2]
[420590938,1776283832812,-878.02924145,0.00010959,2]
[420590939,1776283832822,-878.02924145,0.00010959,2]
[420590940,1776283832831,-878.02924145,0.00010959,2]
[420590941,1776283832841,-878.02924145,0.00010959,2]
[420590942,1776283832850,-258.06396057,0.00010959,2]
[420590943,1776283833163,-619.96528088,0.00010959,2]
[420590944,1776283833173,-878.02924145,0.00010959,2]
[420590945,1776283833182,-954.85680007,0.00010959,2]
[420590946,1776283833191,-118.88625442,0.00010959,2]
[420590965,1776283839389,-835.97054565,0.00010959,2]
[420590966,1776283839400,-954.85680007,0.00010959,2]
[420590967,1776283839409,-954.85680007,0.00010959,2]
[420590968,1776283839419,-954.85680007,0.00010959,2]
[420590970,1776283839429,-954.85680007,0.00010959,2]
[420590971,1776283839439,-954.85680007,0.00010959,2]
[420590972,1776283839448,-954.85680007,0.00010959,2]
[420590973,1776283839459,-225.0,0.0001096,2]
[420590975,1776283839468,-225.0,0.0001096,2]
[420590977,1776283839478,-11861.3056371,0.00011065,2]
[420590979,1776283839488,-150.0,0.0001126,2]
[420590981,1776283839498,-2312.83697232,0.00011322,2]
[420590982,1776283839507,-383.82205719,0.00011735,2]
[420590983,1776283839515,-2398.4119403,0.0001187,2]
[420590984,1776283839525,-1000.0,0.00011946,2]
[420590986,1776283839535,-11053.70643148,0.00011947,2]
[420590988,1776283839544,-1487.80561554,0.00012145,2]
[420590989,1776283839556,-899.72194853,0.00012145,2]
[420590990,1776283839565,-11861.3056371,0.00012177,2]
[420590991,1776283839575,-184.0,0.00012245,2]
[420590992,1776283839584,-180.26,0.00012329,2]
[420590993,1776283839593,-150.22,0.00012329,2]
[420590994,1776283839602,-751.12,0.00012329,2]
[420590995,1776283839611,-2487.15318209,0.00012418,2]
[420590996,1776283839620,-151.5,0.00012506,2]
[420590997,1776283839629,-258.5,0.00012506,2]
[420590998,1776283839638,-2387.52756404,0.00012509,2]
[420590999,1776283839648,-151.0,0.000126,2]
[420591000,1776283839657,-3000.0,0.000128,30]
[420591001,1776283839667,-3000.0,0.0001281,30]
[420591003,1776283839677,-3000.0,0.0001282,30]
[420591004,1776283839686,-3000.0,0.0001283,30]
[420591005,1776283839696,-3000.0,0.0001284,30]
[420591007,1776283839706,-3000.0,0.0001285,30]
[420591009,1776283839716,-3000.0,0.0001286,30]
[420591010,1776283839727,-3000.0,0.0001287,30]
[420591012,1776283839736,-2387.52756404,0.00012872,2]
[420591013,1776283839745,-3000.0,0.0001288,30]
[420591014,1776283839755,-3000.0,0.0001289,30]
[420591015,1776283839765,-151.0,0.000129,2]
[420591016,1776283839774,-3000.0,0.000129,30]
[420591017,1776283839783,-575.62179996,0.000129,2]
[420591018,1776283839792,-575.6217999,0.000129,2]
[420591019,1776283839801,-575.6217999,0.000129,2]
[420591020,1776283839812,-3000.0,0.0001291,30]
[420591021,1776283839821,-3000.0,0.0001292,30]
[420591022,1776283839830,-5054.567054,0.0001293,30]
[420591023,1776283839840,-715.17285798,0.00012966,2]
[420591024,1776283839849,-1006.35,0.00013,2]
[420591025,1776283839859,-59629.28418676,0.000131,2]
[420591028,1776283839869,-285.39,0.000131,2]
[420591029,1776283839880,-83949.65115133,0.0001314,2]
[420591030,1776283839891,-1000.0,0.0001314,2]
[420591031,1776283839901,-244.0,0.0001314,2]
[420591032,1776283839912,-1266.95,0.0001315,2]
[420591033,1776283839922,-151.0,0.000132,2]
[420591034,1776283839932,-197.7288393,0.00013228,2]
[420591035,1776283839941,-2387.52756404,0.00013236,2]
[420591036,1776283839951,-180.6566447,0.00013365,14]
[420591037,1776283839960,-151.0,0.000134,2]
[420591038,1776283839970,-151.0,0.000134,2]
[420591039,1776283839980,-1266.95,0.00013424,2]
[420591040,1776283839990,-2387.52756404,0.00013599,2]
[420591041,1776283839999,-500.0,0.00013673,2]
[420591042,1776283840009,-500.0,0.00013673,2]
[420591043,1776283840019,-613.33608714,0.00013673,2]
[420591044,1776283840028,-500.0,0.00013673,2]
[420591045,1776283840038,-500.0,0.00013673,2]
[420591046,1776283840047,-500.0,0.00013673,2]
[420591047,1776283840057,-202.05489831,0.0001369,7]
[420591048,1776283840066,-202.05489831,0.0001369,7]
[420591049,1776283840075,-202.05489831,0.0001369,7]
[420591050,1776283840085,-202.05489831,0.0001369,7]
[420591051,1776283840094,-1266.95,0.00013698,2]
[420591052,1776283840102,-500.0,0.00013698,2]
[420591053,1776283840111,-500.0,0.00013698,2]
[420591054,1776283840120,-500.0,0.00013698,2]
[420591055,1776283840129,-500.0,0.00013698,2]
[420591057,1776283840138,-500.0,0.00013698,2]
[420591058,1776283840148,-500.0,0.00013698,2]
[420591060,1776283840157,-500.0,0.00013698,2]
[420591061,1776283840166,-500.0,0.00013698,2]
[420591062,1776283840175,-500.0,0.00013698,2]
[420591063,1776283840185,-500.0,0.00013698,2]
[420591064,1776283840194,-500.0,0.00013698,2]
[420591065,1776283840203,-500.0,0.00013698,2]
[420591066,1776283840212,-500.0,0.00013698,2]
[420591067,1776283840222,-500.0,0.00013698,2]
[420591068,1776283840231,-500.0,0.00013698,2]
[420591069,1776283840241,-500.0,0.00013698,2]
[420591070,1776283840250,-500.0,0.00013698,2]
[420591071,1776283840259,-500.0,0.00013698,2]
[420591072,1776283840268,-370.22101605,0.00013698,2]
[420591073,1776283840277,-500.0,0.00013698,2]
[420591074,1776283840287,-500.0,0.00013698,2]
[420591075,1776283840296,-500.0,0.00013698,2]
[420591076,1776283840305,-500.0,0.00013698,2]
[420591077,1776283840314,-500.0,0.00013698,2]
[420591078,1776283840323,-500.0,0.00013698,2]
[420591079,1776283840333,-500.0,0.00013698,2]
[420591080,1776283840342,-500.0,0.00013698,2]
[420591081,1776283840351,-500.0,0.00013698,2]
[420591082,1776283840360,-500.0,0.00013698,2]
[420591083,1776283840370,-500.0,0.00013698,2]
[420591084,1776283840379,-173.19448772,0.00013698,2]
[420591085,1776283840388,-518.56,0.00013698,2]
[420591087,1776283840397,-518.56,0.00013698,2]
[420591088,1776283840407,-518.56,0.00013698,2]
[420591089,1776283840416,-518.56,0.00013698,2]
[420591090,1776283840425,-518.56,0.00013698,2]
[420591091,1776283840434,-518.56,0.00013698,2]
[420591092,1776283840443,-518.56,0.00013698,2]
[420591093,1776283840452,-518.56,0.00013698,2]
[420591094,1776283840462,-518.56,0.00013698,2]
[420591095,1776283840471,-518.56,0.00013698,2]
[420591096,1776283840481,-518.56,0.00013698,2]
[420591097,1776283840489,-518.56,0.00013698,2]
[420591098,1776283840498,-518.56,0.00013698,2]
[420591099,1776283840508,-518.56,0.00013698,2]
[420591100,1776283840517,-518.56,0.00013698,2]
[420591101,1776283840526,-463.25568135,0.00013698,2]
[420591103,1776283840557,-55.30431865,0.00013698,2]
[420591104,1776283840567,-518.56,0.00013698,2]
[420591106,1776283840575,-518.56,0.00013698,2]
[420591107,1776283840584,-518.56,0.00013698,2]
[420591108,1776283840593,-518.56,0.00013698,2]
[420591109,1776283840601,-518.56,0.00013698,2]
[420591111,1776283840610,-518.56,0.00013698,2]
[420591112,1776283840619,-518.56,0.00013698,2]
[420591113,1776283840627,-518.58355698,0.00013698,2]
[420591114,1776283840637,-637.85,0.00013698,2]
[420591115,1776283840645,-637.85,0.00013698,2]
[420591116,1776283840654,-637.85,0.00013698,2]
[420591117,1776283840663,-637.85,0.00013698,2]
[420591119,1776283840672,-637.85,0.00013698,2]
[420591120,1776283840681,-637.85,0.00013698,2]
[420591121,1776283840689,-637.85,0.00013698,2]
[420591122,1776283840698,-637.85,0.00013698,2]
[420591123,1776283840707,-637.85,0.00013698,2]
[420591124,1776283840716,-637.85,0.00013698,2]
[420591125,1776283840725,-637.85,0.00013698,2]
[420591126,1776283840734,-637.85,0.00013698,2]
[420591127,1776283840744,-557.2665435,0.00013698,2]
[420591128,1776283840827,-80.5834565,0.00013698,2]
[420591129,1776283840836,-394.9755009,0.00013698,2]
[420591153,1776283843691,-1650.95049077,0.00013561,2]
[420591185,1776283846619,-3348.65498217,0.00013561,2]
[420591186,1776283846810,-0.39452706,0.00013561,2]
[420591187,1776283846820,-242.8744991,0.00013698,2]
[420591188,1776283846829,-637.85,0.00013698,2]
[420591189,1776283846839,-637.85,0.00013698,2]
[420591190,1776283846848,-637.85,0.00013698,2]
[420591191,1776283846857,-637.85,0.00013698,2]
[420591192,1776283846866,-148.73341548,0.00013698,2]
[420591193,1776283846917,-489.11658452,0.00013698,2]
[420591194,1776283846926,-637.85,0.00013698,2]
[420591195,1776283846935,-637.85,0.00013698,2]
[420591196,1776283846945,-637.85,0.00013698,2]
[420591197,1776283846954,-637.85,0.00013698,2]
[420591198,1776283846963,-637.97,0.00013698,2]
[420591199,1776283846972,-250.1228902,0.00013698,2]
[420591209,1776283865420,496.0,0.00026782,120]
[420591211,1776283952802,995.0,0.00026782,120]
[420591214,1776284051431,581.0,0.00026782,120]
[420591215,1776284072516,339.0,0.00027,120]
[420591218,1776284163302,189.0,0.00026799,120]
[420591224,1776284235948,163.83383525,0.00026799,120]
[420591234,1776284451256,2175.4,0.0002739,120]
[420591257,1776284805407,2796.93353252,0.00027,120]
[420591259,1776284833904,3000.0,0.00027,120]
[420591334,1776285032275,-5000.0,8.3e-05,2]
[420591335,1776285032284,-1981.10054237,8.384e-05,2]
[420591336,1776285032328,-376.17839897,8.384e-05,2]
[420591337,1776285032339,-2642.72105866,8.384e-05,2]
[420591338,1776285032350,-539.0,8.469e-05,2]
[420591339,1776285032359,-270.56107896,8.513e-05,2]
[420591340,1776285032369,-1200.0,8.554e-05,2]
[420591341,1776285032378,-300.0,8.555e-05,2]
[420591342,1776285032388,-300.0,8.555e-05,2]
[420591343,1776285032397,-300.0,8.555e-05,2]
[420591344,1776285032407,-1328.2563985,8.801e-05,2]
[420591345,1776285032416,-2647.96911841,8.901e-05,2]
[420591346,1776285032426,-16152.99,9e-05,2]
[420591347,1776285032435,-217.90670372,9e-05,2]
[420591348,1776285032445,-3967.68183831,9.001e-05,2]
[420591349,1776285032454,-4357.16699261,9.101e-05,2]
[420591350,1776285032464,-1200.0,9.409e-05,2]
[420591351,1776285032473,-420.0,9.411e-05,2]
[420591352,1776285032482,-5287.39455822,9.584e-05,2]
[420591353,1776285032491,-184.0,9.814e-05,2]
[420591354,1776285032500,-300.0,0.00010009,2]
[420591355,1776285032509,-300.0,0.00010009,2]
[420591356,1776285032518,-300.0,0.00010009,2]
[420591357,1776285032527,-300.0,0.00010009,2]
[420591358,1776285032536,-300.0,0.00010009,2]
[420591359,1776285032545,-300.0,0.00010009,2]
[420591360,1776285032554,-300.0,0.00010009,2]
[420591361,1776285032563,-300.0,0.00010009,2]
[420591362,1776285032572,-300.0,0.00010009,2]
[420591363,1776285032581,-300.0,0.00010009,2]
[420591364,1776285032590,-300.0,0.00010009,2]
[420591365,1776285032601,-300.0,0.00010009,2]
[420591366,1776285032610,-300.0,0.00010009,2]
[420591367,1776285032619,-300.0,0.00010009,2]
[420591368,1776285032629,-300.0,0.00010009,2]
[420591369,1776285032638,-587.0,0.00010352,2]
[420591370,1776285032647,-6028.86152728,0.000105,2]
[420591371,1776285032656,-319.26207317,0.00010513,2]
[420591372,1776285032665,-2553.49819663,0.00010758,2]
[420591373,1776285032674,-600.0,0.00011074,2]
[420591374,1776285032683,-160.0,0.00011931,2]
[420591375,1776285032692,-250.08443034,0.00012078,2]
[420591376,1776285032701,-69256.28772514,0.00012081,2]
[420591377,1776285032716,-62207.83180133,0.00012081,2]
[420591378,1776285032726,-4240.55941701,0.00012081,2]
[420591815,1776285038818,-46588.51305982,0.00012081,2]
[420591817,1776285038830,-1785.00951315,0.00012081,2]
[420591820,1776285038841,-5199.95634752,0.00012081,2]
[420591822,1776285038854,-161398.41946235,0.00012081,2]
[420591823,1776285038863,-720.0,0.00012181,2]
[420591825,1776285038872,-367.96306738,0.00012513,2]
[420591827,1776285038881,-184.0,0.00012814,2]
[420591829,1776285038889,-5888.0,0.00012861,2]
[420591831,1776285038898,-359.76362499,0.000129,2]
[420591833,1776285038907,-359.76362493,0.000129,2]
[420591835,1776285038916,-359.76362493,0.000129,2]
[420591837,1776285038926,-5888.0,0.0001294,2]
[420591839,1776285038935,-5888.0,0.00012989,2]
[420591841,1776285038944,-5888.0,0.0001301,2]
[420591843,1776285038953,-5888.0,0.00013033,2]
[420591845,1776285038963,-5888.0,0.00013044,2]
[420591846,1776285038972,-5888.0,0.00013054,2]
[420591848,1776285038981,-5888.0,0.00013059,2]
[420591850,1776285038990,-151.0,0.000131,2]
[420591852,1776285038999,-5888.0,0.00013109,2]
[420591854,1776285039008,-5888.0,0.0001318,2]
[420591856,1776285039018,-151.0,0.000132,2]
[420591858,1776285039028,-5888.0,0.0001323,2]
[420591860,1776285039037,-5888.0,0.00013231,2]
[420591862,1776285039046,-5888.0,0.00013338,2]
[420591864,1776285039055,-864.0,0.00013399,2]
[420591866,1776285039065,-151.0,0.000134,2]
[420591868,1776285039074,-5888.0,0.00013404,2]
[420591870,1776285039083,-5888.0,0.00013422,2]
[420591872,1776285039092,-5888.0,0.00013446,2]
[420591874,1776285039101,-5888.0,0.0001347,2]
[420591876,1776285039112,-151.0,0.000135,2]
[420591878,1776285039121,-5888.0,0.00013568,2]
[420591880,1776285039131,-300.7,0.000136,2]
[420591882,1776285039140,-359.76362493,0.00013614,2]
[420591884,1776285039150,-5888.0,0.00013622,2]
[420591886,1776285039159,-38000.0,0.0001366,3]
[420591888,1776285039168,-38000.0,0.00013669,3]
[420591890,1776285039177,-5888.0,0.00013672,2]
[420591892,1776285039186,-500.0,0.00013673,2]
[420591894,1776285039196,-500.0,0.00013673,2]
[420591896,1776285039205,-343.83725923,0.00013673,2]
[420591898,1776285039214,-500.0,0.00013673,2]
[420591900,1776285039223,-500.0,0.00013673,2]
[420591902,1776285039232,-38000.0,0.00013678,3]
[420591904,1776285039241,-38000.0,0.00013686,3]
[420591906,1776285039250,-38000.0,0.00013695,3]
[420591908,1776285039260,-38000.0,0.00013695,3]
[420591910,1776285039269,-500.0,0.00013698,2]
[420591912,1776285039278,-283.3776133,0.00013698,2]
[420591914,1776285039288,-500.0,0.00013698,2]
[420591916,1776285039297,-584.74361091,0.00013698,2]
[420591918,1776285039306,-152.82317737,0.00013698,2]
[420591920,1776285039316,-694.22396838,0.00013698,2]
[420591921,1776285039328,-2774.11897765,0.00013698,2]
[420591923,1776285039337,-469.27603972,0.00013698,2]
[420591925,1776285039347,-500.0,0.00013698,2]
[420591927,1776285039356,-500.0,0.00013698,2]
[420591929,1776285039366,-500.0,0.00013698,2]
[420591931,1776285039375,-503.1371098,0.00013698,2]
[420591933,1776285039384,-500.0,0.00013698,2]
[420591935,1776285039393,-500.0,0.00013698,2]
[420591937,1776285039402,-500.0,0.00013698,2]
[420591939,1776285039412,-500.0,0.00013698,2]
[420591941,1776285039421,-500.0,0.00013698,2]
[420591943,1776285039430,-500.0,0.00013698,2]
[420591945,1776285039439,-500.0,0.00013698,2]
[420591947,1776285039449,-500.0,0.00013698,2]
[420591949,1776285039458,-500.0,0.00013698,2]
[420591951,1776285039467,-500.0,0.00013698,2]
[420591953,1776285039476,-500.0,0.00013698,2]
[420591955,1776285039485,-500.0,0.00013698,2]